bitfinex/quotes_SOLUSD_20251218
["timestamp","ask_amount","ask_price","bid_price","bid_amount"]
[1766091603703,0.72,117.38,117.35,10.46930076]
[1766091603906,10.46930076,117.38,117.32,10.46930076]
[1766091604137,0.72,117.36,117.33,9.34]
[1766091604353,0.72,117.36,117.31,10.46930076]
[1766091604536,8.80994492,117.34,117.32,7.34]
[1766091604849,8.80994492,117.4,117.33,10.46930076]
[1766091605153,11.18930076,117.39,117.33,10.46930076]
[1766091605456,9.23878997,117.39,117.34,19.80930076]
[1766091605750,0.72,117.39,117.35,10.46930076]
[1766091606051,0.72,117.39,117.36,7.34]
[1766091606252,20.90697372,117.37,117.26,0.67]
[1766091606452,11.18930076,117.36,117.29,10.46930076]
[1766091606658,0.72,117.36,117.31,10.46930076]
[1766091606860,40.27191497,117.46,117.34,18.95989366]
[1766091607169,7.20363636,145.45,117.34,18.95989366]
[1766091607170,0.72,117.52,117.45,10.46930076]
[1766091607330,0.72,117.52,117.46,9.34]
[1766091607530,0.72,117.52,117.49,10.46930076]
[1766091607843,5.43970259,117.62,117.49,8.43767296]
[1766091607844,8.50484776,117.58,117.49,8.43767296]
[1766091608057,0.72,117.56,117.51,10.46930076]
[1766091608258,0.72,117.56,117.52,19.80930076]
[1766091608759,0.72,117.56,117.49,8.43767296]
[1766091608760,0.72,117.61,117.55,10.46930076]
[1766091609157,0.72,117.61,117.56,19.80930076]
[1766091609475,0.72,117.6,117.57,9.34]
[1766091609678,0.72,117.6,117.58,9.34]
[1766091609853,10.46930076,117.6,117.51,11.10767296]
[1766091610053,0.72,117.59,117.54,10.46930076]
[1766091610254,0.72,117.62,117.57,10.46930076]
[1766091610551,0.72,117.62,117.58,9.34]
[1766091610880,0.92,117.65,117.6,10.46930076]
[1766091611072,0.2,117.65,117.59,19.77767296]
[1766091611254,19.8890897,117.65,117.6,9.34]
[1766091611454,0.92,117.65,117.6,9.34]
[1766091611683,0.92,117.65,117.61,10.46930076]
[1766091611978,0.2,117.65,117.6,7.34]
[1766091612158,11.18930076,117.64,117.6,7.34]
[1766091612356,0.2,117.65,117.6,17.80930076]
[1766091612559,9.41997584,117.65,117.61,9.34]
[1766091612785,48.23218431,117.7,117.64,10.46930076]
[1766091612786,0.2,117.7,117.64,10.46930076]
[1766091613090,40.27191497,117.77,117.64,10.46930076]
[1766091613091,0.72,117.76,117.69,11.13930076]
[1766091613265,0.72,117.76,117.71,10.46930076]
[1766091613463,8.49270836,117.75,117.72,10.46930076]
[1766091613663,0.72,117.76,117.7,9.34]
[1766091613664,11.18930076,117.79,117.73,10.46930076]
[1766091613862,0.72,117.79,117.74,10.46930076]
[1766091614303,0.72,117.79,117.75,9.34]
[1766091614454,0.2,117.76,117.75,9.34]
[1766091614650,0.2,117.76,117.75,7.34]
[1766091614879,0.2,117.8,117.75,17.80930076]
[1766091615181,0.2,117.83,117.78,10.43767296]
[1766091615493,0.2,117.83,117.82,10.46930076]
[1766091615664,0.2,117.83,117.82,9.32]
[1766091616064,0.2,117.83,117.82,7.32]
[1766091616668,0.2,117.83,117.82,17.78930076]
[1766091616977,0.2,117.88,117.84,8.43767296]
[1766091617188,0.2,117.89,117.87,10.46930076]
[1766091617377,0.2,117.89,117.84,8.43767296]
[1766091617378,0.2,117.93,117.88,19.78930076]
[1766091617568,0.2,117.93,117.91,10.46930076]
[1766091617769,0.72,118.01,117.92,8.80994492]
[1766091618089,21.62697372,118.0,117.94,10.46930076]
[1766091618260,0.72,117.97,117.94,9.32]
[1766091618592,10.46930076,117.98,117.92,10.46930076]
[1766091618772,8.80994492,117.96,117.93,9.32]
[1766091618975,9.52994492,117.96,117.93,7.32]
[1766091619170,0.72,117.96,117.93,7.32]
[1766091619362,0.72,117.98,117.94,10.46930076]
[1766091619563,0.72,117.98,117.93,17.78930076]
[1766091620286,8.80994492,117.98,117.95,10.46930076]
[1766091620488,0.72,117.99,117.95,10.46930076]
[1766091620690,17.48374771,118.02,117.93,7.32]
[1766091620874,0.72,117.97,117.94,9.32]
[1766091621077,0.72,117.97,117.95,9.32]
[1766091621386,0.72,117.97,117.86,0.99999999]
[1766091621387,11.15767296,117.91,117.89,9.32]
[1766091621889,19.99924568,117.93,117.89,7.32]
[1766091622266,0.72,117.93,117.89,7.32]
[1766091622978,21.62697372,117.93,117.9,9.32]
[1766091623186,10.46930076,117.92,117.9,9.32]
[1766091623386,0.72,117.92,117.9,8.6]
[1766091623572,10.43767296,117.93,117.9,8.6]
[1766091623887,0.72,117.94,117.9,8.6]
[1766091624074,0.72,117.98,117.93,10.46930076]
[1766091624275,0.72,118.0,117.96,10.46930076]
[1766091624475,11.18930076,117.98,117.96,9.32]
[1766091624691,11.18930076,117.98,117.96,0.82420385]
[1766091624992,30.43691864,117.97,117.94,9.32]
[1766091625292,0.2,118.02,118.0,10.43767296]
[1766091625498,0.72,118.1,118.01,19.78930076]
[1766091625798,0.82,118.14,118.09,10.46930076]
[1766091626001,9.28467207,118.14,118.08,19.78930076]
[1766091626204,0.72,118.12,118.08,9.32]
[1766091626900,0.72,118.11,118.08,9.32]
[1766091627393,0.82,118.14,118.08,9.32]
[1766091627594,10.43767296,118.12,118.08,9.32]
[1766091627794,0.72,118.12,118.08,9.32]
[1766091627999,0.1,118.14,118.11,10.46930076]
[1766091628306,0.1,118.17,118.13,19.27924568]
[1766091628474,0.1,118.17,118.16,10.46930076]
[1766091629496,0.1,118.18,118.16,10.46930076]
[1766091629687,0.1,118.19,118.18,10.46930076]
[1766091629888,0.2,118.2,118.18,10.46930076]
[1766091630089,0.99999999,118.33,118.18,10.46930076]
[1766091630090,0.99999999,118.44,118.26,10.46930076]
[1766091630293,0.99999999,118.44,118.22,8.80994492]
[1766091630294,0.99999999,118.44,118.29,10.43767296]
[1766091630295,0.72,118.44,118.29,10.43767296]
[1766091630487,0.72,118.44,118.22,0.84588056]
[1766091630488,4.41909839,118.44,118.31,10.43767296]
[1766091630805,0.72,118.42,118.33,8.80994492]
[1766091630976,0.72,118.4,118.35,10.46930076]
[1766091631178,0.72,118.4,118.34,9.3]
[1766091631394,10.46930076,118.38,118.34,9.3]
[1766091631573,0.72,118.37,118.31,9.3]
[1766091631777,0.72,118.37,118.31,19.76930076]
[1766091631998,42.25659986,118.43,118.31,9.3]
[1766091632190,0.72,118.34,118.3,8.80994492]
[1766091632913,0.72,118.34,118.29,9.3]
[1766091633098,125.95805522,118.44,118.29,9.3]
[1766091633287,10.46930076,118.33,118.29,9.3]
[1766091633490,0.72,118.37,118.3,8.80994492]
[1766091633681,0.72,118.37,118.3,20.57395441]
[1766091633886,11.76400949,118.39,118.32,11.76400949]
[1766091634105,12.48400949,118.4,118.33,22.20168245]
[1766091634285,12.48400949,118.4,118.34,18.10994492]
[1766091634483,8.44504325,118.42,118.34,9.3]
[1766091634484,11.76400949,118.35,118.34,9.3]
[1766091634703,12.48400949,118.37,118.34,9.3]
[1766091634899,0.72,118.37,118.34,9.3]
[1766091635199,12.48400949,118.44,118.36,20.57395441]
[1766091635403,0.72,118.44,118.3,0.84530853]
[1766091635706,11.76400949,118.35,118.29,9.28]
[1766091635884,11.76400949,118.37,118.31,11.76400949]
[1766091636084,11.15767296,118.38,118.29,19.71767296]
[1766091636085,11.76400949,118.35,118.29,19.71767296]
[1766091636285,11.76400949,118.33,118.29,9.28]
[1766091636589,72.00007837,118.39,118.22,21.04400949]
[1766091636590,10.43767296,118.27,118.22,21.04400949]
[1766091636790,11.76400949,118.24,118.22,9.28]
[1766091636979,0.72,118.22,118.15,9.28]
[1766091637183,0.72,118.22,118.16,11.76400949]
[1766091637395,0.72,118.22,118.15,9.28]
[1766091637396,11.76400949,118.23,118.15,9.28]
[1766091637605,8.45882501,118.22,118.15,9.28]
[1766091637797,11.76400949,118.2,118.15,9.28]
[1766091637983,11.76400949,118.17,118.15,9.28]
[1766091638198,17.97120781,118.16,118.04,28.83104998]
[1766091638384,6.20719832,118.16,118.1,11.76400949]
[1766091638714,6.20719832,118.16,118.1,8.80994492]
[1766091638905,11.76400949,118.15,118.09,9.28]
[1766091639106,11.76400949,118.12,118.09,9.28]
[1766091639615,6.20719832,118.16,118.09,9.28]
[1766091639616,11.76400949,118.11,118.09,9.28]
[1766091639922,11.76400949,118.11,118.04,20.36]
[1766091639923,12.48400949,118.1,118.04,9.28]
[1766091640202,11.76400949,118.08,118.04,9.28]
[1766091640382,0.72,118.1,118.04,9.28]
[1766091640579,11.76400949,118.08,118.04,9.28]
[1766091640898,11.76400949,118.05,117.99,9.28]
[1766091641082,17.97120781,118.04,117.99,9.28]
[1766091641281,17.97120781,118.04,117.9,41.54435172]
[1766091641282,11.76400949,118.0,117.9,20.34]
[1766091641479,9.19529451,117.99,117.9,41.38400949]
[1766091641705,11.76400949,117.98,117.91,11.76400949]
[1766091641920,21.18499138,118.01,117.9,29.62]
[1766091641921,11.76400949,117.95,117.9,29.62]
[1766091642284,11.76400949,117.94,117.9,9.28]
[1766091642711,11.76400949,117.93,117.9,9.28]
[1766091642915,11.76400949,117.92,117.85,21.04400949]
[1766091643114,11.76400949,117.91,117.85,9.28]
[1766091643411,8.80994492,117.96,117.77,0.99999999]
[1766091643612,6.20719832,117.89,117.83,9.28]
[1766091643788,6.20719832,117.89,117.86,10.43767296]
[1766091643983,11.76400949,117.91,117.84,0.84860828]
[1766091644324,11.76400949,117.91,117.83,9.28]
[1766091644325,11.76400949,117.89,117.83,9.28]
[1766091644492,0.67,117.97,117.88,8.80994492]
[1766091644692,11.76400949,117.91,117.85,19.24761788]
[1766091644901,12.43400949,117.92,117.85,31.01162737]
[1766091645608,0.67,117.92,117.86,11.76400949]
[1766091646179,12.43400949,117.92,117.86,11.76400949]
[1766091646398,11.76400949,117.91,117.85,31.01162737]
[1766091646598,11.76400949,117.91,117.85,10.43767296]
[1766091646814,12.43400949,117.92,117.85,11.76400949]
[1766091646986,11.76400949,117.9,117.84,8.80994492]
[1766091647987,8.80994492,117.99,117.89,11.76400949]
[1766091648188,8.80994492,117.99,117.88,8.80994492]
[1766091648189,0.67,117.98,117.9,9.28]
[1766091648413,11.76400949,117.95,117.9,9.28]
[1766091648613,11.76400949,117.93,117.9,9.28]
[1766091648821,11.76400949,117.92,117.9,9.28]
[1766091649117,0.67,117.9,117.85,9.3]
[1766091649411,12.43400949,117.9,117.85,9.3]
[1766091649617,11.76400949,117.91,117.85,9.3]
[1766091649791,11.76400949,117.9,117.85,9.3]
[1766091649986,0.67,117.92,117.85,9.3]
[1766091650188,11.76400949,117.9,117.85,9.3]
[1766091650815,11.76400949,117.89,117.85,9.3]
[1766091651118,11.76400949,117.86,117.8,0.65]
[1766091651428,11.76400949,117.83,117.81,5.99934185]
[1766091651589,11.76400949,117.82,117.78,9.5]
[1766091652095,0.67,117.83,117.78,9.5]
[1766091652413,11.76400949,117.81,117.78,9.5]
[1766091652616,11.76400949,117.86,117.81,0.65]
[1766091652818,11.76400949,117.84,117.78,20.58767296]
[1766091653389,0.67,117.86,117.79,8.80994492]
[1766091653618,11.76400949,117.85,117.79,9.45994492]
[1766091654290,11.76400949,117.84,117.79,9.45994492]
[1766091654526,11.76400949,117.85,117.79,9.45994492]
[1766091654694,11.76400949,117.8,117.78,9.5]
[1766091654899,11.76400949,117.8,117.68,0.99999999]
[1766091654900,42.15181196,117.99,117.79,20.25310744]
[1766091655111,0.67,118.02,117.84,8.80994492]
[1766091655315,0.67,117.98,117.94,8.80994492]
[1766091655617,0.67,117.98,117.93,11.76400949]
[1766091655922,9.14629497,117.98,117.92,8.80994492]
[1766091656096,12.43400949,117.96,117.91,19.73767296]
[1766091656296,0.67,117.96,117.91,19.73767296]
[1766091656927,0.67,117.93,117.91,9.3]
[1766091657431,0.67,117.91,117.86,8.80994492]
[1766091657721,11.10767296,117.94,117.87,11.76400949]
[1766091657912,20.91387479,117.93,117.87,11.76400949]
[1766091658109,12.43400949,117.92,117.86,8.80994492]
[1766091658308,12.43400949,117.92,117.86,20.57395441]
[1766091658719,0.67,117.92,117.88,8.80994492]
[1766091658912,0.67,117.92,117.86,22.20168245]
[1766091659114,12.43400949,117.92,117.87,8.80994492]
[1766091659503,0.67,117.92,117.87,8.80994492]
[1766091659705,10.43767296,117.94,117.86,8.80994492]
[1766091659910,0.67,118.04,117.94,8.80994492]
[1766091660098,0.67,118.04,117.97,19.24761788]
[1766091660298,0.67,118.04,118.0,8.80994492]
[1766091660522,0.67,118.04,117.96,0.84774499]
[1766091660720,12.43400949,118.08,118.01,11.76400949]
[1766091660932,0.67,118.04,117.99,8.80994492]
[1766091661107,11.76400949,118.0,117.94,10.43767296]
[1766091661419,11.76400949,117.99,117.92,11.76400949]
[1766091661631,0.67,118.03,117.94,11.76400949]
[1766091661632,11.76400949,118.01,117.94,11.76400949]
[1766091661833,11.76400949,117.99,117.93,19.24761788]
[1766091662033,11.76400949,117.95,117.89,8.80994492]
[1766091662213,11.76400949,117.96,117.89,11.76400949]
[1766091662520,11.76400949,117.96,117.9,10.43767296]
[1766091662700,11.76400949,117.96,117.89,11.76400949]
[1766091662901,8.80994492,117.98,117.89,11.76400949]
[1766091662902,12.47400949,117.95,117.89,11.76400949]
[1766091663117,11.76400949,117.94,117.86,9.3]
[1766091663327,0.71,117.92,117.86,21.06400949]
[1766091663511,12.47400949,117.92,117.87,10.43767296]
[1766091663715,0.71,117.92,117.86,29.87395441]
[1766091664017,0.71,117.92,117.82,21.06400949]
[1766091664018,11.76400949,117.88,117.82,21.06400949]
[1766091664197,12.47400949,117.88,117.82,9.3]
[1766091664397,12.47400949,117.88,117.83,10.43767296]
[1766091664398,0.71,117.88,117.83,10.43767296]
[1766091664597,12.47400949,117.86,117.82,9.3]
[1766091664929,12.47400949,117.87,117.82,9.3]
[1766091665131,0.71,117.83,117.77,8.49098034]
[1766091665305,11.76400949,117.82,117.77,10.43767296]
[1766091665506,10.43767296,117.87,117.78,20.25420583]
[1766091665825,10.43767296,117.87,117.8,8.80994492]
[1766091665826,11.76400949,117.86,117.8,8.80994492]
[1766091666031,12.47400949,117.86,117.8,8.80994492]
[1766091666240,12.47400949,117.88,117.83,10.43767296]
[1766091666401,42.79183395,118.02,117.83,10.43767296]
[1766091666600,42.79183395,118.02,117.8,19.24761788]
[1766091666601,0.71,118.03,117.95,10.43767296]
[1766091666810,4.43315598,118.01,117.97,8.80994492]
[1766091667008,0.71,118.03,117.97,20.57395441]
[1766091667222,0.71,118.03,117.96,8.80994492]
[1766091667423,0.1,118.05,118.02,10.43767296]
[1766091667622,0.81,118.05,117.99,10.43767296]
[1766091667821,12.57400949,118.05,117.99,10.43767296]
[1766091668014,12.57400949,118.05,117.99,18.91273656]
[1766091668015,0.81,118.05,117.99,18.91273656]
[1766091668427,0.81,118.05,117.99,22.20168245]
[1766091668716,0.1,118.05,118.02,11.76400949]
[1766091668927,0.1,118.05,118.02,10.43767296]
[1766091669360,0.1,118.05,118.02,22.20168245]
[1766091669553,0.1,118.05,118.02,10.43767296]
[1766091669746,0.81,118.05,117.96,22.04078555]
[1766091670053,0.1,118.05,118.01,11.76400949]
[1766091670834,0.1,118.05,118.02,11.76400949]
[1766091671249,0.1,118.05,118.01,9.3]
[1766091671250,0.1,118.05,118.03,11.76400949]
[1766091671746,0.1,118.05,118.04,11.76400949]
[1766091671927,0.71,118.11,118.05,8.47098686]
[1766091672251,0.71,118.11,118.06,11.76400949]
[1766091672768,43.40100557,118.18,118.06,11.76400949]
[1766091672769,0.68,118.22,118.1,11.76400949]
[1766091672914,0.68,118.22,118.15,10.43767296]
[1766091673321,0.68,118.22,118.15,11.76400949]
[1766091673547,0.68,118.22,118.16,22.20168245]
[1766091673749,0.68,118.22,118.16,10.43767296]
[1766091673957,0.68,118.26,118.21,11.76400949]
[1766091674272,9.3,118.32,118.23,10.43767296]
[1766091674551,0.68,118.25,118.19,9.3]
[1766091674725,0.68,118.23,118.19,9.3]
[1766091674924,0.68,118.25,118.18,10.43767296]
[1766091675140,11.76400949,118.19,118.1,8.46699787]
[1766091675348,11.76400949,118.19,118.12,11.76400949]
[1766091675349,0.68,118.17,118.12,11.76400949]
[1766091675749,11.76400949,118.17,118.09,9.3]
[1766091675954,11.76400949,118.17,118.04,20.38]
[1766091675955,0.68,118.22,118.11,11.76400949]
[1766091676157,8.80994492,118.15,118.07,9.28]
[1766091676337,0.68,118.14,118.08,11.76400949]
[1766091676545,0.68,118.21,118.1,11.76400949]
[1766091676881,8.80994492,118.21,118.13,11.76400949]
[1766091677180,0.68,118.26,118.19,22.20168245]
[1766091677329,0.68,118.26,118.21,11.76400949]
[1766091677529,0.68,118.32,118.24,22.20168245]
[1766091677771,12.44400949,118.36,118.3,11.76400949]
[1766091678076,12.44400949,118.36,118.27,10.43767296]
[1766091678077,12.44400949,118.33,118.27,19.71767296]
[1766091678228,12.44400949,118.32,118.27,9.28]
[1766091678658,11.76400949,118.29,118.17,8.4623847]
[1766091678860,0.68,118.32,118.21,10.43767296]
[1766091679168,43.52087654,118.34,118.21,11.76400949]
[1766091679331,0.68,118.25,118.19,11.76400949]
[1766091679661,0.68,118.25,118.2,11.76400949]
[1766091679875,0.68,118.25,118.18,10.43767296]
[1766091680251,8.80994492,118.24,118.17,9.28]
[1766091680552,12.44400949,118.22,118.17,9.28]
[1766091680762,0.68,118.22,118.17,21.04400949]
[1766091680974,0.68,118.22,118.17,9.28]
[1766091681176,0.68,118.26,118.2,10.43767296]
[1766091681459,11.76400949,118.23,118.17,9.28]
[1766091681666,11.76400949,118.22,118.17,9.28]
[1766091681865,19.24761788,118.24,118.1,8.46675162]
[1766091681866,11.76400949,118.2,118.1,8.46675162]
[1766091682040,11.76400949,118.2,118.07,0.84695519]
[1766091682041,12.44400949,118.18,118.11,9.28]
[1766091682246,0.68,118.18,118.12,10.43767296]
[1766091682439,0.68,118.2,118.13,11.76400949]
[1766091682640,0.68,118.25,118.18,11.76400949]
[1766091682968,0.68,118.25,118.2,11.76400949]
[1766091683346,12.44400949,118.25,118.18,10.43767296]
[1766091683671,0.68,118.22,118.17,21.04400949]
[1766091683963,0.68,118.22,118.17,9.28]
[1766091684142,11.76400949,118.24,118.18,11.76400949]
[1766091684344,0.68,118.25,118.19,11.76400949]
[1766091684674,11.76400949,118.28,118.21,11.76400949]
[1766091684971,0.68,118.27,118.22,11.76400949]
[1766091685135,11.86400949,118.29,118.17,38.89807289]
[1766091685338,12.44400949,118.28,118.21,22.20168245]
[1766091685536,0.68,118.28,118.22,11.76400949]
[1766091685737,0.68,118.28,118.24,11.76400949]
[1766091685953,0.1,118.29,118.25,11.76400949]
[1766091686141,0.1,118.29,118.24,11.76400949]
[1766091686641,0.1,118.29,118.25,11.76400949]
[1766091687273,0.78,118.29,118.24,10.43767296]
[1766091687466,0.68,118.28,118.24,10.43767296]
[1766091687779,0.68,118.25,118.2,10.43767296]
[1766091687989,11.11767296,118.28,118.21,11.76400949]
[1766091688186,12.44400949,118.24,118.19,9.28]
[1766091688353,0.68,118.24,118.19,9.28]
[1766091689667,0.68,118.22,118.19,9.28]
[1766091689969,0.68,118.24,118.19,9.28]
[1766091690192,0.68,118.28,118.19,19.71767296]
[1766091690399,0.68,118.27,118.22,11.76400949]
[1766091690603,0.68,118.27,118.22,10.43767296]
[1766091691008,0.68,118.27,118.17,22.00157426]
[1766091691009,0.68,118.24,118.18,11.76400949]
[1766091691491,0.68,118.27,118.21,11.76400949]
[1766091691690,0.1,118.29,118.25,11.76400949]
[1766091692203,0.78,118.29,118.23,21.04400949]
[1766091692385,0.78,118.29,118.24,11.76400949]
[1766091692582,0.78,118.29,118.23,21.04400949]
[1766091692767,0.78,118.29,118.24,11.76400949]
[1766091692968,0.78,118.29,118.23,9.28]
[1766091693198,0.78,118.29,118.23,21.04400949]
[1766091693504,11.76400949,118.28,118.2,10.43767296]
[1766091693671,0.68,118.25,118.2,22.20168245]
[1766091693870,0.68,118.25,118.19,21.04400949]
[1766091694270,0.68,118.25,118.2,11.76400949]
[1766091694502,0.68,118.25,118.19,21.04400949]
[1766091694702,11.76400949,118.23,118.19,9.28]
[1766091695016,11.11767296,118.26,118.19,21.04400949]
[1766091695226,22.20168245,118.26,118.19,21.04400949]
[1766091695396,0.68,118.22,118.19,9.28]
[1766091695605,0.68,118.25,118.2,10.31043238]
[1766091695893,0.68,118.25,118.19,19.59043238]
[1766091696287,10.99043238,118.21,118.12,8.80994492]
[1766091696618,10.99043238,118.2,118.14,10.43767296]
[1766091696806,0.68,118.19,118.13,19.59043238]
[1766091697003,0.68,118.19,118.13,30.02810534]
[1766091697528,10.31043238,118.17,118.1,8.46720733]
[1766091697740,8.80994492,118.21,118.13,10.31043238]
[1766091697741,0.68,118.18,118.13,10.31043238]
[1766091698904,10.99043238,118.2,118.13,10.31043238]
[1766091699216,10.99043238,118.2,118.13,10.43767296]
[1766091699423,10.31043238,118.23,118.16,20.74810534]
[1766091699589,8.80994492,118.25,118.15,19.24761788]
[1766091699791,0.68,118.23,118.18,10.31043238]
[1766091700318,0.68,118.23,118.17,10.31043238]
[1766091700922,10.99043238,118.23,118.16,10.31043238]
[1766091701428,10.99043238,118.23,118.16,18.77338455]
[1766091701594,0.68,118.22,118.16,10.31043238]
[1766091701919,0.68,118.22,118.15,27.71131561]
[1766091701920,0.68,118.22,118.17,18.77278751]
[1766091702086,0.68,118.22,118.17,10.31043238]
[1766091702898,0.68,118.22,118.17,18.7728099]
[1766091703091,0.68,118.22,118.17,10.31043238]
[1766091703293,10.31043238,118.22,118.16,10.31043238]
[1766091703498,0.67,118.21,118.15,20.74810534]
[1766091704024,10.98043238,118.21,118.15,20.74810534]
[1766091704227,0.67,118.2,118.15,10.31043238]
[1766091704393,10.98043238,118.2,118.14,9.28]
[1766091704598,0.67,118.17,118.09,8.80994492]
[1766091704802,8.80994492,118.19,118.09,9.28]
[1766091705111,0.67,118.15,118.09,30.02810534]
[1766091705320,19.24761788,118.18,118.11,10.31043238]
[1766091705547,0.67,118.17,118.11,10.31043238]
[1766091705829,0.67,118.17,118.11,18.77707733]
[1766091706036,0.67,118.17,118.11,10.43767296]
[1766091706037,0.67,118.16,118.11,10.43767296]
[1766091706636,0.67,118.16,118.11,20.74810534]
[1766091706804,0.67,118.16,118.11,10.43767296]
[1766091707005,0.67,118.16,118.12,10.31043238]
[1766091707840,0.67,118.16,118.11,18.90429045]
[1766091708042,0.67,118.16,118.11,20.74810534]
[1766091708338,0.67,118.16,118.11,29.21469942]
[1766091708709,0.67,118.16,118.12,10.31043238]
[1766091709112,0.67,118.2,118.14,10.31043238]
[1766091709524,0.67,118.2,118.15,10.31043238]
[1766091709854,0.67,118.2,118.16,10.31043238]
[1766091710560,0.67,118.19,118.14,19.71767296]
[1766091710710,0.67,118.18,118.14,19.71767296]
[1766091711038,0.67,118.17,118.14,9.28]
[1766091711937,10.98043238,118.16,118.1,10.31043238]
[1766091712136,10.31043238,118.16,118.1,19.71767296]
[1766091712317,0.67,118.15,118.1,19.71767296]
[1766091712642,10.31043238,118.18,118.11,10.31043238]
[1766091712943,0.67,118.17,118.11,10.31043238]
[1766091713148,0.67,118.17,118.1,49.3533982]
[1766091713316,0.67,118.16,118.11,10.31043238]
[1766091714418,0.67,118.16,118.1,30.02810534]
[1766091714657,0.67,118.16,118.1,28.18481398]
[1766091714953,0.67,118.15,118.1,30.02810534]
[1766091715743,0.67,118.15,118.1,19.71767296]
[1766091715943,19.1203773,118.16,118.1,19.71767296]
[1766091716153,0.67,118.09,118.03,8.47181928]
[1766091716551,10.31043238,118.08,118.01,30.02810534]
[1766091716714,0.67,118.06,118.01,9.28]
[1766091717131,10.98043238,118.06,118.01,9.28]
[1766091718166,0.67,118.05,118.01,9.28]
[1766091718367,10.98043238,118.04,117.97,28.06653545]
[1766091718578,19.7903773,118.07,118.0,10.31043238]
[1766091718873,10.98043238,118.04,117.97,17.75642685]
[1766091719073,0.67,118.03,117.97,38.50453219]
[1766091719377,0.67,118.03,117.97,9.28]
[1766091719538,10.98043238,118.03,117.97,19.59043238]
[1766091719741,0.67,118.03,117.97,28.06711052]
[1766091720369,0.67,118.03,117.98,8.47597142]
[1766091720578,0.67,118.01,117.97,9.28]
[1766091720734,0.67,118.03,117.97,28.0669354]
[1766091720940,0.99999999,118.14,118.0,10.31043238]
[1766091721139,0.99999999,118.14,117.98,8.80994492]
[1766091721140,0.67,118.09,118.03,10.31043238]
[1766091721356,0.67,118.09,118.02,0.66]
[1766091721357,10.31043238,118.09,118.02,0.66]
[1766091721554,0.68,118.12,118.04,10.31043238]
[1766091721769,0.68,118.07,118.02,9.28]
[1766091722059,0.68,118.06,118.02,9.28]
[1766091722437,0.68,118.06,118.02,19.59043238]
[1766091722658,10.99043238,118.07,118.02,9.28]
[1766091722862,0.68,118.07,118.02,9.28]
[1766091723059,0.68,118.07,118.02,19.59043238]
[1766091723267,10.99043238,118.07,118.02,9.28]
[1766091723464,0.68,118.06,118.02,9.28]
[1766091723667,10.99043238,118.06,118.02,9.28]
[1766091724169,0.68,118.06,118.02,9.28]
[1766091724592,0.68,118.09,118.02,19.59043238]
[1766091724791,0.68,118.07,118.02,9.28]
[1766091724955,21.16022738,118.15,118.04,10.31043238]
[1766091725152,0.68,118.11,118.05,10.31043238]
[1766091725381,0.68,118.1,118.05,10.31043238]
[1766091725586,0.68,118.12,118.07,10.31043238]
[1766091725790,0.68,118.16,118.1,10.31043238]
[1766091726088,10.31043238,118.15,118.08,30.02810534]
[1766091726286,29.61082909,118.2,118.08,30.02810534]
[1766091726287,10.99043238,118.14,118.08,30.02810534]
[1766091726491,29.61082909,118.2,118.08,19.59043238]
[1766091726670,0.68,118.18,118.1,18.77781833]
[1766091726866,0.68,118.16,118.12,10.31043238]
[1766091727069,0.68,118.2,118.12,10.43767296]
[1766091727266,0.68,118.19,118.13,10.31043238]
[1766091727466,10.99043238,118.18,118.12,10.43767296]
[1766091727678,0.68,118.18,118.12,20.74810534]
[1766091728061,0.68,118.18,118.13,10.31043238]
[1766091728262,10.99043238,118.22,118.15,10.31043238]
[1766091728455,0.68,118.22,118.17,10.31043238]
[1766091728907,20.74810534,118.23,118.14,20.74810534]
[1766091728908,10.31043238,118.21,118.14,20.74810534]
[1766091729181,0.68,118.19,118.14,10.43767296]